bitfinex/quotes_BTCUSD_20240819
["timestamp","ask_amount","ask_price","bid_price","bid_amount"]
[1724075719269,0.1769,58360.0,58343.0,0.00442741]
[1724075719505,0.1769,58360.0,58345.0,0.001]
[1724075719713,0.1769,58360.0,58347.0,0.001]
[1724075719927,0.15118957,58361.0,58347.0,0.001]
[1724075719928,0.00048957,58361.0,58351.0,0.001]
[1724075720157,0.00048957,58361.0,58352.0,0.00342675]
[1724075720422,0.00048957,58361.0,58355.0,0.001]
[1724075720628,0.00048957,58361.0,58355.0,0.1944266]
[1724075720836,0.00048957,58361.0,58355.0,0.191]
[1724075721050,0.00048957,58361.0,58356.0,1.5]
[1724075721261,0.00048957,58361.0,58360.0,0.17135]
[1724075721464,0.00048957,58361.0,58358.0,0.171355]
[1724075721682,0.00048957,58361.0,58354.0,0.343734]
[1724075721683,0.00048957,58361.0,58351.0,0.03433]
[1724075721904,0.00048957,58361.0,58331.0,0.023]
[1724075721905,0.171392,58346.0,58343.0,1.5]
[1724075722115,0.3336,58360.0,58327.0,0.001]
[1724075722116,0.342743,58353.0,58332.0,0.1716]
[1724075722323,0.171392,58346.0,58332.0,0.1716]
[1724075722527,0.00978515,58359.0,58332.0,0.1716]
[1724075722737,0.1765,58346.0,58332.0,0.1716]
[1724075722947,0.171405,58342.0,58332.0,0.1716]
[1724075723159,0.171418,58337.0,58326.0,0.1795]
[1724075723367,0.17141,58340.0,58326.0,0.1795]
[1724075723575,0.171418,58337.0,58326.0,0.1795]
[1724075723800,0.342816,58341.0,58326.0,0.1795]
[1724075724007,0.342816,58341.0,58322.0,0.15]
[1724075724252,0.171427,58334.0,58322.0,0.15]
[1724075724460,0.138,58345.0,58322.0,0.15]
[1724075724676,0.342801,58343.0,58322.0,0.15]
[1724075724883,0.138,58345.0,58322.0,0.15]
[1724075724884,0.171424,58335.0,58322.0,0.15]
[1724075725089,0.171419,58337.0,58322.0,0.15]
[1724075725303,0.138,58345.0,58322.0,0.15]
[1724075725517,0.138,58345.0,58323.0,0.00342862]
[1724075725733,0.48079,58345.0,58323.0,0.10342862]
[1724075725945,0.48079,58345.0,58325.0,0.171451]
[1724075726161,0.171398,58344.0,58325.0,0.171451]
[1724075726372,0.1714,58343.0,58325.0,0.171451]
[1724075726583,0.342796,58344.0,58323.0,0.1]
[1724075726843,0.171415,58338.0,58323.0,0.1]
[1724075727074,0.342799,58344.0,58323.0,0.1]
[1724075727280,0.138,58345.0,58323.0,0.1]
[1724075727281,0.342835,58338.0,58323.0,0.1]
[1724075727696,0.171412,58339.0,58323.0,0.1]
[1724075728399,0.17142,58336.0,58323.0,0.1]
[1724075728613,0.138,58345.0,58322.0,0.15]
[1724075728614,0.000902,58339.0,58322.0,0.15]
[1724075728822,0.174,58338.0,58322.0,0.15]
[1724075729247,0.514375,58323.0,58322.0,0.15]
[1724075729688,0.857292,58323.0,58322.0,0.15]
[1724075729902,0.514375,58323.0,58322.0,1e-08]
[1724075730317,0.857292,58323.0,58322.0,1e-08]
[1724075730524,0.174,58325.0,58322.0,1e-08]
[1724075730740,0.857292,58323.0,58322.0,1e-08]
[1724075730950,0.174,58325.0,58322.0,1e-08]
[1724075731153,0.171458,58323.0,58322.0,1e-08]
[1724075731360,1.200209,58323.0,58322.0,1e-08]
[1724075731570,0.857292,58323.0,58322.0,1e-08]
[1724075731781,0.87326567,58323.0,58322.0,1e-08]
[1724075732022,0.857292,58323.0,58322.0,1e-08]
[1724075733496,0.87326921,58323.0,58322.0,1e-08]
[1724075733711,0.53035221,58323.0,58322.0,1e-08]
[1724075733924,0.18743521,58323.0,58322.0,1e-08]
[1724075734133,0.514375,58323.0,58322.0,1e-08]
[1724075734369,0.01597771,58323.0,58322.0,1e-08]
[1724075734588,0.171458,58323.0,58322.0,1e-08]
[1724075734797,0.05027029,58338.0,58322.0,1e-08]
[1724075735003,0.24610543,58340.0,58323.0,0.1361]
[1724075735004,0.1707,58340.0,58323.0,0.1361]
[1724075735212,0.171431,58333.0,58323.0,0.1361]
[1724075735430,0.1707,58340.0,58322.0,1e-08]
[1724075735431,0.171458,58323.0,58322.0,1e-08]
[1724075735686,0.1707,58340.0,58322.0,1e-08]
[1724075735944,0.06715193,58339.0,58322.0,1e-08]
[1724075736161,0.171453,58325.0,58322.0,1e-08]
[1724075736365,0.1586,58326.0,58322.0,1e-08]
[1724075736775,0.171458,58323.0,58322.0,1e-08]
[1724075736993,0.171448,58327.0,58322.0,1e-08]
[1724075737217,0.342881,58330.0,58322.0,1e-08]
[1724075737455,0.171452,58326.0,58322.0,1e-08]
[1724075737657,0.342889,58328.0,58322.0,1e-08]
[1724075737866,0.342899,58327.0,58322.0,1e-08]
[1724075738079,0.17145,58326.0,58322.0,1e-08]
[1724075738292,0.514375,58323.0,58322.0,1e-08]
[1724075738509,1.334109,58323.0,58322.0,1e-08]
[1724075738721,0.991192,58323.0,58322.0,1e-08]
[1724075738929,0.514375,58323.0,58322.0,1e-08]
[1724075739353,0.857292,58323.0,58322.0,1e-08]
[1724075739583,0.514375,58323.0,58322.0,1e-08]
[1724075740430,0.342894,58327.0,58322.0,1e-08]
[1724075740643,0.000902,58323.0,58322.0,1e-08]
[1724075740853,0.17236,58323.0,58322.0,1e-08]
[1724075741066,0.000902,58323.0,58322.0,0.30400001]
[1724075741904,0.000902,58323.0,58322.0,0.47888978]
[1724075742113,0.000902,58323.0,58322.0,0.81838401]
[1724075742343,0.000902,58323.0,58322.0,1.16130701]
[1724075743405,0.000902,58323.0,58322.0,0.81838401]
[1724075743827,0.000902,58323.0,58322.0,0.47546101]
[1724075744681,0.000902,58323.0,58322.0,0.81838401]
[1724075745750,0.000902,58323.0,58322.0,2.66130701]
[1724075745952,0.000902,58323.0,58322.0,2.31838401]
[1724075747224,0.000902,58323.0,58322.0,1.97546101]
[1724075747444,0.000902,58323.0,58322.0,2.31838401]
[1724075747866,0.00068354,58323.0,58322.0,2.68430701]
[1724075748745,0.00068354,58323.0,58322.0,1.80400001]
[1724075748950,0.00068354,58323.0,58322.0,1e-08]
[1724075749617,0.00068354,58323.0,58322.0,0.17146101]
[1724075749823,0.00068354,58323.0,58322.0,0.17488974]
[1724075750242,0.00068354,58323.0,58322.0,1.67488974]
[1724075750453,0.00068354,58323.0,58322.0,2.01781274]
[1724075750669,0.00068354,58323.0,58322.0,2.65643574]
[1724075750929,0.00068354,58323.0,58322.0,2.99935874]
[1724075751133,0.00068354,58323.0,58322.0,2.99835874]
[1724075751558,0.00068354,58323.0,58322.0,2.65543574]
[1724075751767,0.00068354,58323.0,58322.0,1.77170001]
[1724075751985,0.00068354,58323.0,58322.0,2.28608401]
[1724075752219,0.00068354,58323.0,58322.0,2.62900701]
[1724075753926,0.00068354,58323.0,58322.0,1.94316101]
[1724075754141,0.00068354,58323.0,58322.0,1.77170001]
[1724075754350,0.00068354,58323.0,58322.0,1.67170001]
[1724075755114,0.00068354,58323.0,58322.0,1.50000001]
[1724075755315,0.00068354,58323.0,58322.0,1e-08]
[1724075756387,0.00068354,58323.0,58322.0,0.00082001]
[1724075757380,0.00068354,58323.0,58322.0,1.02682701]
[1724075757643,0.00068354,58323.0,58322.0,1.16222701]
[1724075757828,0.00068354,58323.0,58322.0,0.81930401]
[1724075758145,0.00068354,58323.0,58322.0,1.26222701]
[1724075759082,0.00068354,58323.0,58322.0,2.76222701]
[1724075759502,0.00068354,58323.0,58322.0,2.78522701]
[1724075760309,0.00068354,58323.0,58322.0,3.12815001]
[1724075760736,0.00068354,58323.0,58322.0,3.12915001]
[1724075760966,0.00068354,58323.0,58322.0,3.47207301]
[1724075761162,0.00068354,58323.0,58322.0,3.47307301]
[1724075761738,0.00068354,58323.0,58322.0,3.47507301]
[1724075761953,2.0,58330.0,58329.0,1.666369]
[1724075762328,2.0,58330.0,58329.0,1.954869]
[1724075762787,2.0,58330.0,58329.0,3.491199]
[1724075763212,0.78,58330.0,58329.0,3.834081]
[1724075763423,0.78,58330.0,58329.0,3.493199]
[1724075763424,0.6465,58330.0,58329.0,3.493199]
[1724075763638,0.6465,58330.0,58329.0,3.836081]
[1724075763844,0.64307222,58330.0,58329.0,3.836081]
[1724075764319,0.000902,58339.0,58338.0,1.83973]
[1724075764535,0.00048957,58361.0,58360.0,1.13575]
[1724075764934,0.00048957,58361.0,58360.0,2.65875]
[1724075765617,0.00048957,58361.0,58360.0,2.75975]
[1724075765828,0.00048957,58361.0,58360.0,2.41605]
[1724075766034,0.00048957,58361.0,58360.0,2.75875]
[1724075766703,0.00048957,58361.0,58360.0,1.902]
[1724075766915,0.16318957,58361.0,58349.0,0.04952984]
[1724075768609,0.00048957,58361.0,58350.0,0.2809]
[1724075768808,0.00048957,58361.0,58357.0,0.498417]
[1724075768995,0.00048957,58361.0,58360.0,0.17135]
[1724075769199,0.00048957,58361.0,58360.0,0.19777611]
[1724075769405,0.00048957,58361.0,58360.0,2.04047611]
[1724075769619,0.00048957,58361.0,58360.0,2.48317611]
[1724075769830,0.00048957,58361.0,58360.0,1.79777611]
[1724075770038,0.00048957,58361.0,58360.0,2.13705]
[1724075770276,0.00048957,58361.0,58360.0,2.47975]
[1724075770884,0.00048957,58361.0,58360.0,2.82245]
[1724075771095,0.00048957,58361.0,58360.0,2.47975]
[1724075771945,0.27878957,58361.0,58360.0,2.47975]
[1724075772148,0.27878957,58361.0,58333.0,0.03433]
[1724075772149,0.00048957,58361.0,58333.0,0.03433]
[1724075772305,0.00048957,58361.0,58350.0,0.342758]
[1724075772511,0.00048957,58361.0,58351.0,1.671376]
[1724075772718,0.00048957,58361.0,58351.0,1.671375]
[1724075773170,0.00048957,58361.0,58352.0,0.171372]
[1724075773369,0.00048957,58361.0,58360.0,0.17135]
[1724075773733,0.00048957,58361.0,58353.0,0.00342674]
[1724075773977,0.00048957,58361.0,58354.0,0.342734]
[1724075774185,0.00048957,58361.0,58355.0,0.1]
[1724075774423,0.00048957,58361.0,58355.0,0.0034266]
[1724075774741,0.00048957,58361.0,58356.0,0.023]
[1724075775163,0.00048957,58361.0,58359.0,0.171351]
[1724075775377,0.00048957,58361.0,58360.0,0.17477628]
[1724075775587,0.00048957,58361.0,58358.0,0.171355]
[1724075775814,0.00048957,58361.0,58357.0,0.342715]
[1724075776008,0.00048957,58361.0,58359.0,0.171351]
[1724075776205,0.00048957,58361.0,58357.0,0.171358]
[1724075776421,0.00048957,58361.0,58353.0,0.1]
[1724075776634,0.00048957,58361.0,58351.0,1.5]
[1724075776635,0.16458957,58361.0,58351.0,1.5]
[1724075776860,0.16458957,58361.0,58352.0,0.171372]
[1724075777065,0.16458957,58361.0,58351.0,1.5]
[1724075777066,0.16458957,58361.0,58353.0,0.171369]
[1724075777266,0.16458957,58361.0,58355.0,0.171363]
[1724075777471,0.16458957,58361.0,58356.0,0.00342684]
[1724075777677,0.16458957,58361.0,58355.0,0.00342684]
[1724075777929,0.00048957,58361.0,58355.0,0.00342684]
[1724075778172,0.00048957,58361.0,58360.0,0.17135]
[1724075778401,0.00048957,58361.0,58360.0,0.54047628]
[1724075778673,0.00048957,58361.0,58360.0,1.00337628]
[1724075779077,0.00048957,58361.0,58360.0,2.84607628]
[1724075779331,0.00048957,58361.0,58360.0,2.94607628]
[1724075779776,0.00048957,58361.0,58360.0,2.94707628]
[1724075779981,0.00048957,58361.0,58360.0,2.94607628]
[1724075780322,0.00048957,58361.0,58360.0,2.94707628]
[1724075780552,0.00048957,58361.0,58360.0,2.94607628]
[1724075780777,0.00048957,58361.0,58360.0,2.94707628]
[1724075780976,0.00048957,58361.0,58360.0,2.94265]
[1724075781900,0.00048957,58361.0,58360.0,2.94365]
[1724075782715,0.00048957,58361.0,58360.0,2.94265]
[1724075782908,0.00048957,58361.0,58360.0,2.94365]
[1724075783090,0.00048957,58361.0,58360.0,2.94465]
[1724075784139,0.00048957,58361.0,58360.0,2.94365]
[1724075784355,0.00048957,58361.0,58360.0,2.95161146]
[1724075785514,0.00048957,58361.0,58360.0,2.95261146]
[1724075786521,0.00048957,58361.0,58360.0,3.31971146]
[1724075786732,0.00048957,58361.0,58360.0,3.32171146]
[1724075786923,0.00048957,58361.0,58360.0,3.32371146]
[1724075787140,0.00048957,58361.0,58360.0,3.66641146]
[1724075787355,0.00048957,58361.0,58360.0,3.66241146]
[1724075787559,0.00048957,58361.0,58360.0,3.66641146]
[1724075788231,0.00048957,58361.0,58360.0,3.66741146]
[1724075788431,0.00048957,58361.0,58360.0,3.70174146]
[1724075788581,0.00048957,58361.0,58360.0,3.85564146]
[1724075791100,0.00048957,58361.0,58360.0,4.02699023]
[1724075794717,0.00048957,58361.0,58360.0,4.36969023]
[1724075794929,0.0002,58379.0,58375.0,0.173306]
[1724075795130,0.0002,58379.0,58377.0,0.5189]
[1724075795500,0.0002,58379.0,58377.0,1.77537877]
[1724075795707,0.0002,58379.0,58377.0,3.37537877]
[1724075797837,0.00902001,58389.0,58382.0,0.175285]
[1724075798063,0.00902001,58389.0,58382.0,1.15820046]
[1724075798286,0.00902001,58389.0,58382.0,1.84334246]
[1724075798502,0.00902001,58389.0,58382.0,1.52867677]
[1724075798705,0.00902001,58389.0,58382.0,3.02867677]
[1724075798859,0.00902001,58389.0,58382.0,3.03067677]
[1724075799468,0.00902001,58389.0,58382.0,3.03267677]
[1724075799672,0.00902001,58389.0,58386.0,1.202914]
[1724075799928,0.00313901,58389.0,58388.0,0.513804]
[1724075800137,0.00313901,58389.0,58388.0,1.15068877]
[1724075801288,0.00313901,58389.0,58388.0,1.15368877]
[1724075801519,0.00313901,58389.0,58388.0,1.15068877]
[1724075802228,0.00313901,58389.0,58388.0,1.1603994]
[1724075802427,0.00313901,58389.0,58388.0,1.1593994]
[1724075802746,0.00313901,58389.0,58388.0,1.5019354]
[1724075803176,0.00313901,58389.0,58388.0,1.5029354]
[1724075803366,0.00313901,58389.0,58388.0,1.5049354]
[1724075804325,0.00313901,58389.0,58388.0,1.5019354]
[1724075804938,0.00313901,58389.0,58388.0,1.5029354]
[1724075805528,0.00213701,58394.0,58393.0,0.513759]
[1724075805748,0.00213701,58394.0,58393.0,1.17620777]
[1724075805956,0.00213701,58394.0,58393.0,0.63944877]
[1724075806164,0.00213701,58394.0,58388.0,0.10871063]
[1724075806165,0.00213701,58394.0,58388.0,0.00871063]
[1724075806556,0.00213701,58394.0,58390.0,0.171259]
[1724075806767,0.00213701,58394.0,58391.0,0.00342473]
[1724075806974,0.00213701,58394.0,58391.0,0.1]
[1724075807408,0.00213701,58394.0,58378.0,0.03433]
[1724075807409,0.34176036,58393.0,58379.0,0.3681]
[1724075807613,0.00566036,58392.0,58384.0,0.17134877]
[1724075807822,0.3361,58393.0,58384.0,0.17134877]
[1724075808234,0.0056604,58392.0,58384.0,0.17134877]
[1724075808442,0.000902,58389.0,58384.0,0.17134877]
[1724075808679,0.178,58388.0,58384.0,0.17134877]
[1724075810440,0.178,58388.0,58385.0,0.171275]
[1724075810656,0.178,58388.0,58386.0,0.17134877]
[1724075811074,0.178,58388.0,58387.0,1.5]
[1724075811291,0.178,58388.0,58387.0,1.67134877]
[1724075811515,0.178,58388.0,58378.0,0.271296]
[1724075811749,0.178,58388.0,58380.0,0.44263877]
[1724075811984,0.178,58388.0,58380.0,1.77134877]
[1724075812416,0.178,58388.0,58380.0,2.11392877]
[1724075812618,0.178,58388.0,58380.0,1.94263977]
[1724075813244,0.178,58388.0,58380.0,1.77134877]
[1724075813883,0.178,58388.0,58380.0,1.94263977]
[1724075814096,0.178,58388.0,58382.0,0.171285]
[1724075814312,0.178,58388.0,58383.0,0.27134877]
[1724075814517,0.028,58388.0,58383.0,0.19777401]
[1724075814736,0.000902,58389.0,58388.0,0.171268]
[1724075814903,0.000902,58389.0,58388.0,0.34604166]
[1724075815146,0.000902,58389.0,58388.0,0.68857766]
[1724075815580,0.000902,58389.0,58388.0,1.84604166]
[1724075815789,0.000902,58389.0,58388.0,2.21157766]
[1724075816050,0.000902,58389.0,58388.0,2.20815277]
[1724075816267,0.000902,58389.0,58388.0,1.67134877]
[1724075816681,0.000902,58389.0,58388.0,1.84261677]
[1724075816884,0.000902,58389.0,58388.0,1.67134877]
[1724075817110,0.000902,58389.0,58388.0,1.84261677]
[1724075818317,0.000902,58389.0,58388.0,2.52768877]
[1724075818533,0.000902,58389.0,58388.0,2.65068877]
[1724075818987,0.000902,58389.0,58388.0,2.99422477]
[1724075819190,0.000902,58389.0,58388.0,2.99322477]
[1724075819393,0.000902,58389.0,58388.0,3.0022087]
[1724075819813,0.000902,58389.0,58388.0,3.0052087]
[1724075820042,0.000902,58389.0,58388.0,3.0022087]
[1724075820428,0.000902,58389.0,58388.0,3.0032087]
[1724075820661,0.000902,58389.0,58388.0,2.6113367]
[1724075821185,0.000902,58389.0,58388.0,2.2688007]
[1724075821390,0.000902,58389.0,58388.0,2.0975327]
[1724075821605,0.000902,58389.0,58388.0,2.2688007]
[1724075822018,0.000902,58389.0,58388.0,2.9538727]
[1724075822459,0.000902,58389.0,58388.0,2.06554877]
[1724075822680,0.184802,58389.0,58388.0,2.06554877]
[1724075822894,0.19046241,58389.0,58388.0,1.7942]
[1724075823106,0.19046241,58389.0,58385.0,0.00897192]
[1724075823107,0.19046232,58389.0,58385.0,0.00897192]
[1724075823334,0.184802,58389.0,58386.0,0.17134877]
[1724075823550,0.184802,58389.0,58382.0,0.3942]
[1724075823760,0.00566042,58388.0,58387.0,1.5]
[1724075823973,0.184802,58389.0,58387.0,1.5]
[1724075824175,0.15476064,58388.0,58387.0,1.5]
[1724075826412,0.1491,58388.0,58387.0,1.5]
[1724075826627,0.15476071,58388.0,58387.0,1.5]
[1724075826836,0.15476071,58388.0,58382.0,0.3942]
[1724075827038,0.1491,58388.0,58382.0,0.3942]
[1724075827262,0.1491,58388.0,58383.0,1.67134877]
[1724075827471,0.00566048,58387.0,58383.0,1.5]
[1724075827676,0.00566048,58386.0,58383.0,1.5]
[1724075827893,0.1491,58388.0,58383.0,1.5]
[1724075827894,0.00566048,58385.0,58383.0,1.5]
[1724075828099,0.00566048,58385.0,58377.0,0.04951781]
[1724075828100,0.1725,58379.0,58377.0,0.04951781]
[1724075828505,0.00566048,58378.0,58370.0,1.5]
[1724075828925,0.00566048,58378.0,58371.0,0.17477479]
[1724075829137,0.1725,58379.0,58371.0,0.17134877]
[1724075829341,0.00566155,58378.0,58373.0,0.17131]
[1724075829549,0.1725,58379.0,58370.0,0.636837]
[1724075829550,0.00566152,58377.0,58374.0,1.5]
[1724075829756,0.00566163,58376.0,58374.0,1.5]
[1724075829958,0.00566163,58375.0,58367.0,0.05842365]
[1724075830167,0.00566163,58374.0,58367.0,0.05842365]
[1724075830371,0.01959777,58376.0,58368.0,1.5]
[1724075830572,0.02302386,58376.0,58368.0,1.5]
[1724075830776,0.00566209,58375.0,58369.0,0.1]
[1724075830986,0.00566209,58374.0,58369.0,0.1]
[1724075831191,0.1432,58372.0,58369.0,0.1]
[1724075831392,0.1432,58372.0,58370.0,1.5]
[1724075832239,0.1882,58371.0,58370.0,1.5]
[1724075832444,0.1882,58371.0,58360.0,0.04908729]
[1724075832445,0.19386255,58371.0,58360.0,0.04908729]
[1724075832683,0.19386255,58371.0,58353.0,0.348769]
[1724075832684,0.00908864,58370.0,58353.0,0.348769]
[1724075832907,0.00908864,58370.0,58354.0,1.67134877]
[1724075832908,0.00566255,58369.0,58354.0,1.67134877]
[1724075833117,0.00566273,58369.0,58354.0,1.67134877]
[1724075833327,0.00566273,58368.0,58354.0,1.84271377]
[1724075833539,0.00566273,58367.0,58354.0,1.67134877]
[1724075833779,0.1882,58371.0,58355.0,0.271363]
[1724075833990,0.05593452,58370.0,58355.0,0.27134877]
[1724075834204,0.00566282,58369.0,58356.0,0.00342677]
[1724075834420,0.00566282,58369.0,58355.0,0.44271277]
[1724075834641,0.00566283,58368.0,58355.0,0.27134877]
[1724075834890,0.359518,58371.0,58355.0,0.27134877]
[1724075835110,0.00908891,58370.0,58355.0,0.27134877]
[1724075835323,0.00566282,58369.0,58355.0,0.27134877]
[1724075835525,0.00566282,58368.0,58355.0,0.27134877]
[1724075835736,0.00342609,58368.0,58355.0,0.27134877]
[1724075835950,0.24191453,58367.0,58355.0,0.1]
[1724075836169,0.00342609,58366.0,58353.0,0.05791321]
[1724075836373,0.00342609,58366.0,58354.0,0.17134877]
[1724075836788,0.00342609,58366.0,58355.0,0.1]
[1724075837012,0.1886,58367.0,58358.0,0.171354]
[1724075837218,0.1897,58373.0,58363.0,0.2942]
[1724075837421,0.1897,58373.0,58365.0,0.171332]
[1724075837641,0.1897,58373.0,58366.0,0.171331]
[1724075837847,0.1897,58373.0,58365.0,0.00342632]
[1724075838895,0.1897,58373.0,58365.0,0.17476132]
[1724075839116,0.1897,58373.0,58365.0,0.17134877]
[1724075839324,0.1897,58373.0,58367.0,1.5]
[1724075842804,0.18,58367.0,58348.0,0.191]
[1724075843018,0.15648865,58366.0,58348.0,0.191]
[1724075843233,0.17699856,58365.0,58350.0,1.5]
[1724075843434,0.18042765,58364.0,58350.0,1.67134877]
[1724075843636,0.00566256,58363.0,58350.0,1.67134877]
[1724075843845,0.00342609,58362.0,58350.0,1.67134877]
[1724075844062,0.00566256,58361.0,58350.0,1.67134877]
[1724075844471,0.00342609,58360.0,58350.0,1.5]
[1724075844676,0.1882,58359.0,58350.0,1.5]
[1724075846673,0.1474,58366.0,58356.0,0.2942]
[1724075846674,0.3356,58366.0,58356.0,0.2942]
[1724075847311,0.3356,58366.0,58357.0,1.5]
[1724075847904,0.171317,58372.0,58357.0,1.5]
[1724075847905,0.1773,58371.0,58363.0,0.17134]
[1724075848115,0.1471,58379.0,58371.0,0.171316]
[1724075848334,0.1471,58379.0,58369.0,0.2942]
[1724075848335,0.00566214,58378.0,58369.0,0.2942]
[1724075848538,0.1471,58379.0,58372.0,1.5]
[1724075848765,0.1471,58379.0,58372.0,1.84266277]
[1724075848962,0.1471,58379.0,58372.0,2.01397777]
[1724075849176,0.3237,58388.0,58373.0,0.00342584]
[1724075849382,0.00566138,58387.0,58374.0,0.34424877]
[1724075849659,0.00566138,58386.0,58375.0,0.171305]
[1724075849877,0.00566138,58385.0,58376.0,0.023]
[1724075850099,0.00566138,58384.0,58374.0,0.04957986]
[1724075850555,0.00566138,58383.0,58375.0,0.1747746]
[1724075850732,0.3237,58388.0,58376.0,0.194302]
[1724075850936,0.00566153,58387.0,58376.0,0.194302]
[1724075851291,0.00566153,58386.0,58376.0,0.023]
[1724075851506,0.69679773,58385.0,58374.0,0.04957986]
[1724075851711,0.3326,58380.0,58374.0,0.04957986]
[1724075851913,0.00908762,58379.0,58374.0,0.04957986]
[1724075852123,0.00566153,58378.0,58364.0,0.1]
[1724075852332,0.00566153,58378.0,58364.0,0.27134877]
[1724075852754,0.00566153,58377.0,58364.0,0.44268377]
[1724075852970,0.00342609,58378.0,58365.0,1.523]
[1724075853186,0.00566216,58377.0,58365.0,1.694332]
[1724075853405,0.00566216,58376.0,58365.0,1.694332]
[1724075853619,0.00566216,58375.0,58373.0,0.17131]
[1724075853866,0.1428,58380.0,58370.0,0.2942]
[1724075854077,0.00566185,58379.0,58366.0,0.36234877]
[1724075854301,0.00566185,58378.0,58371.0,1.5]
[1724075854508,0.00566185,58377.0,58371.0,1.5]
[1724075854716,0.00566185,58376.0,58371.0,1.5]
[1724075854934,0.00566185,58376.0,58363.0,0.22117007]
[1724075854935,0.00566185,58376.0,58363.0,0.04983007]
[1724075854936,0.1422,58374.0,58363.0,0.04983007]
[1724075855149,0.1882,58369.0,58363.0,0.04983007]
[1724075855360,0.1882,58369.0,58352.0,1.671371]
[1724075855361,0.02507361,58368.0,58352.0,1.671371]
[1724075855565,0.00566185,58367.0,58352.0,1.67134877]
[1724075855773,0.17476009,58366.0,58352.0,1.67134877]
[1724075855980,0.00566185,58365.0,58352.0,1.67134877]
[1724075856187,0.33801107,58364.0,58352.0,1.5]
[1724075856450,0.02164498,58363.0,58352.0,1.5]
[1724075856657,0.02164498,58363.0,58351.0,0.04967074]
[1724075856658,0.34271,58359.0,58351.0,0.04967074]
[1724075856898,0.342724,58356.0,58351.0,0.04967074]
[1724075857097,0.342724,58356.0,58350.0,0.001]
[1724075857098,0.19641984,58355.0,58350.0,0.001]
[1724075857301,0.02164498,58354.0,58350.0,0.001]
[1724075857502,0.00566185,58354.0,58350.0,0.001]
[1724075857725,0.05937161,58353.0,58350.0,0.001]
[1724075857930,0.00566185,58352.0,58350.0,0.001]
[1724075858143,0.00342609,58351.0,58350.0,0.001]
[1724075858349,0.00566185,58351.0,58350.0,0.001]
[1724075858557,0.00908794,58351.0,58350.0,0.001]
[1724075858969,0.00566185,58351.0,58350.0,0.001]
[1724075859587,0.0056644,58355.0,58350.0,0.001]
[1724075859790,0.0056644,58354.0,58350.0,0.001]
[1724075860004,0.0056644,58353.0,58350.0,0.001]
[1724075860243,0.0056644,58352.0,58350.0,0.001]
[1724075860449,0.0056644,58351.0,58350.0,0.001]
[1724075860595,0.0056644,58356.0,58350.0,0.001]
[1724075860810,0.05779193,58356.0,58350.0,0.001]
[1724075860967,0.00909049,58355.0,58350.0,0.001]
[1724075861172,0.514129,58351.0,58350.0,0.001]
[1724075861373,0.0056644,58351.0,58350.0,0.001]
[1724075861620,0.19302042,58351.0,58350.0,0.001]
[1724075861827,0.02164442,58351.0,58350.0,0.001]
[1724075862036,0.0056644,58351.0,58350.0,0.001]
[1724075862244,0.0056644,58352.0,58350.0,0.001]
[1724075862471,0.0056644,58351.0,58350.0,0.001]
[1724075862654,0.0419109,58351.0,58350.0,0.001]
[1724075862852,0.00566475,58351.0,58350.0,0.001]
[1724075863276,0.317861,58357.0,58350.0,0.001]
[1724075863483,0.00566435,58356.0,58350.0,0.001]
[1724075863690,0.00566435,58355.0,58350.0,0.001]
[1724075864067,0.00566435,58354.0,58350.0,0.001]
[1724075864278,0.1465,58357.0,58350.0,0.001]
[1724075864279,0.01521644,58353.0,58350.0,0.001]
[1724075864683,0.00342609,58357.0,58350.0,0.001]
[1724075864882,0.00566415,58356.0,58350.0,0.001]
[1724075865085,0.00566415,58355.0,58350.0,0.001]
[1724075865235,0.00566415,58354.0,58350.0,0.001]
[1724075865443,0.1766,58357.0,58350.0,0.001]
[1724075865648,0.00342609,58361.0,58350.0,0.001]
[1724075865649,0.00566423,58356.0,58350.0,0.001]
[1724075865856,0.00566423,58355.0,58350.0,0.001]
[1724075866085,0.1766,58361.0,58350.0,0.001]
[1724075866288,0.1407,58363.0,58350.0,0.001]
[1724075866289,0.00566403,58360.0,58350.0,0.001]
[1724075866514,0.31204877,58363.0,58350.0,0.001]
[1724075866767,0.02165069,58362.0,58350.0,0.001]
[1724075866964,0.00566397,58361.0,58350.0,0.001]
[1724075867149,0.00566397,58360.0,58350.0,0.001]
[1724075867353,0.00909006,58359.0,58350.0,0.001]
[1724075867562,0.20245046,58358.0,58350.0,0.001]
[1724075867770,0.00909006,58357.0,58350.0,0.001]
[1724075867970,0.00566397,58356.0,58350.0,0.001]
[1724075868355,0.00342609,58355.0,58350.0,0.001]
[1724075868600,0.00566397,58354.0,58350.0,0.001]
[1724075868792,0.00342609,58353.0,58350.0,0.001]
[1724075869149,0.1808,58358.0,58350.0,0.001]
[1724075869495,0.342691,58362.0,58350.0,0.001]
[1724075869496,0.00566412,58357.0,58350.0,0.001]
[1724075869705,0.00566412,58356.0,58350.0,0.001]
[1724075869911,0.17135,58360.0,58350.0,0.001]
[1724075870035,0.00566401,58359.0,58350.0,0.001]
[1724075870235,0.00566401,58358.0,58350.0,0.001]
[1724075870477,0.00566401,58357.0,58350.0,0.001]
[1724075870683,0.00566401,58356.0,58350.0,0.001]
[1724075870890,0.171347,58361.0,58350.0,0.001]
[1724075871089,0.14486042,58360.0,58350.0,0.001819]
[1724075871291,0.171347,58361.0,58350.0,0.001819]
[1724075871464,0.00566401,58359.0,58350.0,0.001819]
[1724075871701,0.00566401,58358.0,58350.0,0.001819]
[1724075871907,0.00566401,58357.0,58350.0,0.001819]
[1724075872271,0.00566401,58356.0,58350.0,0.001819]
[1724075872478,0.34269277,58362.0,58350.0,0.001819]
[1724075872678,0.02165349,58361.0,58350.0,0.001819]
[1724075872813,0.00566398,58360.0,58350.0,0.001819]
[1724075873048,0.00566398,58359.0,58353.0,0.342739]
[1724075873399,0.12646369,58372.0,58356.0,0.535118]
[1724075873400,0.153,58371.0,58356.0,0.535118]
[1724075873606,0.153,58371.0,58357.0,0.17134877]
[1724075873607,0.00908913,58370.0,58357.0,0.17134877]